fUSD/lending_fUSD_20250505
["ID","MTS","AMOUNT","RATE_DAILY","PERIOD"]
[359905678,1746411039115,-162.26,0.000198,2]
[359905680,1746411039124,-447.27,0.000198,2]
[359905681,1746411039133,-150.0,0.000198,2]
[359905683,1746411039142,-703.63,0.000198,2]
[359905685,1746411039152,-301.38,0.000198,2]
[359905687,1746411039161,-801.78,0.000198,2]
[359905689,1746411039170,-912.44,0.000198,2]
[359905691,1746411039179,-162.26,0.000198,2]
[359905693,1746411039188,-451.65,0.000198,2]
[359905695,1746411039197,-150.0,0.000198,2]
[359905697,1746411039207,-352.11,0.000198,2]
[359905699,1746411039217,-802.02,0.000198,2]
[359905702,1746411039226,-433.21479223,0.000198,2]
[359905704,1746411039239,-23.00520777,0.000198,2]
[359905706,1746411039249,-512.4945,0.000198,2]
[359905708,1746411039258,-902.97,0.000198,2]
[359905710,1746411039267,-1628.98,0.000198,2]
[359905712,1746411039276,-430.56,0.000198,2]
[359905714,1746411039287,-162.26,0.000198,2]
[359905716,1746411039296,-300.0,0.000198,2]
[359905718,1746411039305,-456.22,0.000198,2]
[359905720,1746411039315,-1603.32,0.000198,2]
[359905722,1746411039324,-301.18,0.000198,2]
[359905724,1746411039333,-300.0,0.000198,2]
[359905726,1746411039342,-151.8,0.000198,2]
[359905728,1746411039352,-150.0,0.000198,2]
[359905730,1746411039362,-451.39,0.000198,2]
[359905731,1746411039371,-162.26,0.000198,2]
[359905734,1746411039382,-802.02,0.000198,2]
[359905736,1746411039392,-456.22,0.000198,2]
[359905738,1746411039402,-352.11,0.000198,2]
[359905740,1746411039414,-150.0,0.000198,2]
[359905742,1746411039424,-300.0,0.000198,2]
[359905744,1746411039433,-451.75,0.000198,2]
[359905746,1746411039443,-300.0,0.000198,2]
[359905748,1746411039451,-160.17,0.000198,2]
[359905750,1746411039460,-1308.55,0.000198,2]
[359905751,1746411039469,-150.0,0.000198,2]
[359905753,1746411039478,-352.11,0.000198,2]
[359905755,1746411039488,-150.0,0.000198,2]
[359905757,1746411039497,-324.52,0.000198,2]
[359905759,1746411039509,-1154.02,0.000198,2]
[359905761,1746411039519,-456.22,0.000198,2]
[359905763,1746411039529,-150.0,0.000198,2]
[359905765,1746411039539,-150.0,0.000198,2]
[359905767,1746411039548,-802.02,0.000198,2]
[359905769,1746411039560,-456.22,0.000198,2]
[359905771,1746411039569,-352.11,0.000198,2]
[359905773,1746411039578,-2202.0721,0.000198,2]
[359905775,1746411039587,-451.75,0.000198,2]
[359905777,1746411039596,-150.0,0.000198,2]
[359905779,1746411039605,-1154.02,0.000198,2]
[359905781,1746411039614,-704.22,0.000198,2]
[359905783,1746411039625,-150.0,0.000198,2]
[359905785,1746411039634,-162.26,0.000198,2]
[359905787,1746411039643,-802.02,0.000198,2]
[359905789,1746411039652,-447.88605,0.000198,23]
[359905791,1746411039661,-1606.79803717,0.00019811,2]
[359905793,1746411039671,-1606.79803717,0.00019833,2]
[359905795,1746411039680,-1606.79803717,0.00019856,2]
[359905797,1746411039689,-500.0,0.00019873,2]
[359905799,1746411039699,-500.0,0.00019873,2]
[359905801,1746411039710,-500.0,0.00019873,2]
[359905803,1746411039718,-501.27839898,0.00019873,2]
[359905805,1746411039729,-1606.79803717,0.00019878,2]
[359905807,1746411039738,-216.8863407,0.00019885,2]
[359905809,1746411039747,-154.26,0.00019886,2]
[359905811,1746411039757,-5874.5569,0.00019895,2]
[359905813,1746411039767,-1000.0,0.00019896,2]
[359905815,1746411039776,-739.4855,0.00019896,2]
[359905817,1746411039787,-177.52048402,0.00019896,2]
[359905819,1746411039798,-1719.61990177,0.00019897,2]
[359905821,1746411039808,-468.24916141,0.00019897,2]
[359905823,1746411039817,-1719.61990177,0.00019897,2]
[359905825,1746411039826,-163.02379532,0.00019898,2]
[359905827,1746411039836,-408.46385219,0.00019898,2]
[359905829,1746411039849,-480.52286395,0.00019898,2]
[359905831,1746411039859,-443.81885455,0.00019898,2]
[359905833,1746411039869,-158.0573631,0.00019898,2]
[359905835,1746411039878,-481.9062817,0.00019898,2]
[359905837,1746411039888,-472.6079305,0.00019898,2]
[359905839,1746411039898,-471.73426108,0.00019898,2]
[359905841,1746411039907,-1719.61990177,0.00019898,2]
[359905843,1746411039917,-1719.61990177,0.00019899,2]
[359905845,1746411039926,-352.98853596,0.00019899,2]
[359905847,1746411039939,-378.38486306,0.00019899,2]
[359905850,1746411039952,-71.61513694,0.00019899,2]
[359905852,1746411039961,-450.0,0.00019899,2]
[359905854,1746411039970,-450.0,0.00019899,2]
[359905856,1746411039979,-450.0,0.00019899,2]
[359905858,1746411039988,-498.92283693,0.00019899,2]
[359905860,1746411039998,-450.0,0.00019899,2]
[359905862,1746411040007,-550.7663493,0.00019899,2]
[359905864,1746411040017,-835.78,0.00019899,2]
[359905866,1746411040026,-450.0,0.00019899,2]
[359905868,1746411040037,-450.0,0.00019899,2]
[359905870,1746411040047,-450.0,0.00019899,2]
[359905872,1746411040056,-450.0,0.00019899,2]
[359905874,1746411040067,-450.0,0.00019899,2]
[359905876,1746411040076,-450.0,0.00019899,2]
[359905878,1746411040086,-593.51291204,0.00019899,2]
[359905880,1746411040095,-450.0,0.00019899,2]
[359905882,1746411040104,-450.0,0.00019899,2]
[359905884,1746411040114,-1610.39,0.00019899,2]
[359905886,1746411040123,-450.0,0.00019899,2]
[359905888,1746411040132,-506.08,0.00019899,2]
[359905890,1746411040141,-450.0,0.00019899,2]
[359905892,1746411040150,-540.93928702,0.00019899,2]
[359905894,1746411040160,-450.0,0.00019899,2]
[359905896,1746411040169,-450.0,0.00019899,2]
[359905898,1746411040178,-450.0,0.00019899,2]
[359905900,1746411040187,-450.0,0.00019899,2]
[359905902,1746411040196,-450.0,0.00019899,2]
[359905904,1746411040205,-450.0,0.00019899,2]
[359905906,1746411040215,-435.04965615,0.00019899,2]
[359905908,1746411040224,-450.0,0.00019899,2]
[359905910,1746411040233,-500.0,0.00019899,2]
[359905912,1746411040243,-500.0,0.00019899,2]
[359905914,1746411040252,-472.20131199,0.00019899,2]
[359905916,1746411040262,-500.0,0.00019899,2]
[359905918,1746411040271,-500.0,0.00019899,2]
[359905920,1746411040280,-500.0,0.00019899,2]
[359905922,1746411040292,-500.0,0.00019899,2]
[359905924,1746411040302,-500.0,0.00019899,2]
[359905926,1746411040312,-500.0,0.00019899,2]
[359905928,1746411040322,-500.0,0.00019899,2]
[359905930,1746411040331,-500.0,0.00019899,2]
[359905932,1746411040341,-500.0,0.00019899,2]
[359905934,1746411040351,-500.0,0.00019899,2]
[359905936,1746411040360,-500.0,0.00019899,2]
[359905938,1746411040369,-500.0,0.00019899,2]
[359905940,1746411040379,-500.0,0.00019899,2]
[359905942,1746411040388,-500.0,0.00019899,2]
[359905945,1746411040399,-500.0,0.00019899,2]
[359905947,1746411040408,-500.0,0.00019899,2]
[359905949,1746411040418,-500.0,0.00019899,2]
[359905951,1746411040429,-500.0,0.00019899,2]
[359905953,1746411040438,-190.93449874,0.00019899,2]
[359905955,1746411040447,-500.0,0.00019899,2]
[359905957,1746411040457,-500.0,0.00019899,2]
[359905959,1746411040467,-500.0,0.00019899,2]
[359905961,1746411040476,-500.0,0.00019899,2]
[359905963,1746411040485,-500.0,0.00019899,2]
[359905965,1746411040494,-500.0,0.00019899,2]
[359905967,1746411040503,-500.0,0.00019899,2]
[359905969,1746411040513,-500.0,0.00019899,2]
[359905971,1746411040523,-500.0,0.00019899,2]
[359905973,1746411040532,-500.0,0.00019899,2]
[359905975,1746411040542,-500.0,0.00019899,2]
[359905977,1746411040551,-500.0,0.00019899,2]
[359905979,1746411040560,-500.0,0.00019899,2]
[359905980,1746411040569,-500.0,0.00019899,2]
[359905982,1746411040577,-500.0,0.00019899,2]
[359905984,1746411040587,-500.0,0.00019899,2]
[359905986,1746411040596,-649.99999999,0.00019899,2]
[359905988,1746411040606,-1134.5080109,0.00019899,2]
[359905991,1746411040618,-585.11189087,0.00019899,2]
[359905993,1746411040627,-160.48810893,0.000199,2]
[359905995,1746411040638,-540.47189107,0.000199,2]
[359905997,1746411040648,-162.3,0.000199,2]
[359905999,1746411040657,-451.65,0.000199,2]
[359906001,1746411040666,-1154.02,0.000199,2]
[359906003,1746411040675,-150.0,0.000199,2]
[359906005,1746411040684,-300.0,0.000199,2]
[359906007,1746411040693,-352.11,0.000199,2]
[359906009,1746411040702,-150.0,0.000199,2]
[359906011,1746411040712,-150.0,0.000199,2]
[359906013,1746411040721,-213.04853104,0.000199,2]
[359906039,1746411040965,-243.17146896,0.000199,2]
[359906041,1746411040974,-137.54028567,0.000199,2]
[359906044,1746411040990,-664.23971433,0.000199,2]
[359906046,1746411040999,-1719.61990177,0.000199,2]
[359906048,1746411041008,-1606.79803717,0.000199,2]
[359906050,1746411041017,-451.75,0.000199,2]
[359906052,1746411041027,-456.36,0.000199,2]
[359906054,1746411041038,-352.11,0.000199,2]
[359906056,1746411041047,-1603.56,0.000199,2]
[359906058,1746411041057,-150.0,0.000199,2]
[359906060,1746411041066,-451.65,0.000199,2]
[359906062,1746411041075,-1154.02,0.000199,2]
[359906064,1746411041084,-162.3,0.000199,2]
[359906066,1746411041094,-150.0,0.000199,2]
[359906068,1746411041103,-352.11,0.000199,2]
[359906070,1746411041112,-456.36,0.000199,2]
[359906072,1746411041122,-801.26,0.000199,2]
[359906074,1746411041132,-451.65,0.000199,2]
[359906076,1746411041141,-162.3,0.000199,2]
[359906078,1746411041150,-66921.91494012,0.000199,2]
[359906080,1746411041159,-216.88634069,0.000199,2]
[359906082,1746411041168,-162.3,0.000199,2]
[359906084,1746411041177,-451.65,0.000199,2]
[359906086,1746411041186,-1154.02,0.000199,2]
[359906088,1746411041196,-352.11,0.000199,2]
[359906090,1746411041205,-801.53,0.000199,2]
[359906092,1746411041214,-150.0,0.000199,2]
[359906094,1746411041223,-912.3,0.000199,2]
[359906096,1746411041232,-157.14749848,0.000199,2]
[359906098,1746411041241,-177.52048402,0.000199,2]
[359906099,1746411041250,-7666.73129023,0.000199,2]
[359906100,1746411041259,-640.14772353,0.000199,2]
[359906101,1746411041269,-1185.02,0.000199,2]
[359906102,1746411041278,-150.0,0.000199,2]
[359906103,1746411041288,-162.3,0.000199,2]
[359906104,1746411041298,-801.78,0.000199,2]
[359906105,1746411041307,-451.65,0.000199,2]
[359906106,1746411041316,-456.36,0.000199,2]
[359906107,1746411041325,-367.99,0.000199,2]
[359906108,1746411041334,-887.123,0.00019936,2]
[359906109,1746411041344,-879.83,0.00019936,2]
[359906110,1746411041353,-1155.063,0.00019936,2]
[359906111,1746411041361,-1770.648,0.00019961,2]
[359906112,1746411041371,-177.436,0.00019961,2]
[359906113,1746411041380,-500.0,0.00019973,2]
[359906115,1746411041390,-500.0,0.00019973,2]
[359906117,1746411041400,-500.0,0.00019973,2]
[359906119,1746411041409,-300.0,0.00019973,2]
[359906121,1746411041419,-599.45137858,0.00019984,2]
[359906123,1746411041429,-450.0,0.00019984,2]
[359906125,1746411041438,-450.0,0.00019984,2]
[359906127,1746411041448,-500.0,0.00019984,2]
[359906129,1746411041458,-450.0,0.00019984,2]
[359906131,1746411041467,-450.0,0.00019984,2]
[359906133,1746411041476,-450.0,0.00019984,2]
[359906135,1746411041486,-400.0,0.00019984,2]
[359906137,1746411041495,-450.0,0.00019984,2]
[359906139,1746411041504,-450.0,0.00019984,2]
[359906141,1746411041514,-450.0,0.00019984,2]
[359906143,1746411041523,-474.77390612,0.00019984,2]
[359906145,1746411041536,-450.0,0.00019984,2]
[359906147,1746411041545,-450.0,0.00019984,2]
[359906149,1746411041554,-450.0,0.00019984,2]
[359906151,1746411041563,-969.0,0.00019984,2]
[359906153,1746411041573,-536.29874379,0.00019984,2]
[359906155,1746411041582,-450.0,0.00019984,2]
[359906157,1746411041592,-450.0,0.00019984,2]
[359906159,1746411041602,-306.19115913,0.00019984,2]
[359906161,1746411041611,-450.0,0.00019984,2]
[359906163,1746411041621,-450.0,0.00019984,2]
[359906165,1746411041630,-450.0,0.00019984,2]
[359906167,1746411041640,-489.02932887,0.00019984,2]
[359906169,1746411041650,-554.7969361,0.00019984,2]
[359906171,1746411041660,-450.0,0.00019984,2]
[359906174,1746411041670,-450.0,0.00019984,2]
[359906175,1746411041680,-450.0,0.00019984,2]
[359906177,1746411041690,-568.85445459,0.00019984,2]
[359906179,1746411041699,-450.0,0.00019984,2]
[359906181,1746411041709,-450.0,0.00019984,2]
[359906183,1746411041718,-450.0,0.00019984,2]
[359906186,1746411041728,-450.0,0.00019984,2]
[359906187,1746411041738,-12311.25,0.00019984,2]
[359906189,1746411041748,-959.55,0.00019984,2]
[359906191,1746411041757,-450.0,0.00019984,2]
[359906193,1746411041766,-450.0,0.00019984,2]
[359906195,1746411041777,-450.0,0.00019984,2]
[359906198,1746411041789,-450.0,0.00019984,2]
[359906200,1746411041799,-450.0,0.00019984,2]
[359906202,1746411041808,-554.61809979,0.00019984,2]
[359906204,1746411041817,-450.0,0.00019984,2]
[359906206,1746411041827,-493.06931437,0.00019984,2]
[359906208,1746411041836,-450.0,0.00019984,2]
[359906210,1746411041847,-430.0,0.00019984,2]
[359906212,1746411041860,-458.64,0.00019984,2]
[359906214,1746411041869,-450.0,0.00019984,2]
[359906216,1746411041879,-450.0,0.00019984,2]
[359906218,1746411041888,-282.71743429,0.00019984,2]
[359906220,1746411041899,-450.0,0.00019984,2]
[359906221,1746411041909,-476.1762135,0.00019984,2]
[359906224,1746411041919,-718.69,0.00019984,2]
[359906225,1746411041932,-183.35498645,0.00019984,2]
[359906228,1746411041942,-450.0,0.00019984,2]
[359906230,1746411041952,-450.0,0.00019984,2]
[359906231,1746411041962,-450.0,0.00019984,2]
[359906234,1746411041971,-450.0,0.00019984,2]
[359906235,1746411041982,-300.42861565,0.00019984,2]
[359906238,1746411041993,-450.0,0.00019984,2]
[359906240,1746411042002,-504.02,0.00019984,2]
[359906242,1746411042013,-3305.6092338,0.00019985,2]
[359906244,1746411042022,-3251.583163,0.00019986,2]
[359906246,1746411042036,-3197.5570923,0.00019986,2]
[359906248,1746411042047,-3143.5310216,0.00019986,2]
[359906250,1746411042058,-3089.5049508,0.00019986,2]
[359906252,1746411042068,-3035.4788801,0.00019986,2]
[359906254,1746411042079,-1312.143,0.00019986,2]
[359906256,1746411042089,-938.02,0.00019986,2]
[359906258,1746411042098,-797.0,0.00019986,2]
[359906260,1746411042108,-183.61738231,0.00019989,2]
[359906262,1746411042117,-450.0,0.00019994,2]
[359906264,1746411042127,-450.0,0.00019994,2]
[359906266,1746411042136,-510.0,0.00019994,2]
[359906268,1746411042146,-527.05919274,0.00019995,2]
[359906270,1746411042156,-450.0,0.00019995,2]
[359906272,1746411042166,-451.07288666,0.00019995,2]
[359906274,1746411042176,-450.0,0.00019996,2]
[359906276,1746411042185,-450.0,0.00019996,2]
[359906278,1746411042194,-450.0,0.00019996,2]
[359906280,1746411042203,-450.0,0.00019996,2]
[359906282,1746411042212,-450.0,0.00019996,2]
[359906284,1746411042221,-490.10667359,0.00019996,2]
[359906286,1746411042231,-475.32988049,0.00019996,2]
[359906288,1746411042240,-466.66241917,0.00019996,2]
[359906290,1746411042250,-469.20720008,0.00019996,2]
[359906292,1746411042259,-450.0,0.00019996,2]
[359906294,1746411042268,-450.0,0.00019996,2]
[359906296,1746411042277,-450.0,0.00019996,2]
[359906298,1746411042290,-450.0,0.00019996,2]
[359906300,1746411042299,-450.0,0.00019996,2]
[359906302,1746411042308,-450.0,0.00019996,2]
[359906304,1746411042319,-450.0,0.00019996,2]
[359906306,1746411042328,-450.0,0.00019996,2]
[359906308,1746411042338,-450.0,0.00019996,2]
[359906310,1746411042348,-250.0,0.00019996,2]
[359906312,1746411042358,-450.0,0.00019996,2]
[359906315,1746411042368,-450.0,0.00019996,2]
[359906317,1746411042377,-450.0,0.00019996,2]
[359906319,1746411042387,-530.0,0.00019996,2]
[359906321,1746411042397,-450.0,0.00019996,2]
[359906322,1746411042406,-450.0,0.00019996,2]
[359906324,1746411042415,-450.0,0.00019996,2]
[359906327,1746411042428,-450.0,0.00019996,2]
[359906329,1746411042437,-450.0,0.00019996,2]
[359906331,1746411042447,-450.0,0.00019996,2]
[359906333,1746411042457,-450.0,0.00019996,2]
[359906335,1746411042467,-450.0,0.00019996,2]
[359906336,1746411042476,-450.0,0.00019996,2]
[359906338,1746411042485,-450.0,0.00019996,2]
[359906340,1746411042495,-237.01207346,0.00019996,2]
[359906342,1746411042504,-499.04197943,0.00019996,2]
[359906344,1746411042513,-400.0,0.00019996,2]
[359906346,1746411042522,-498.97247815,0.00019996,2]
[359906348,1746411042532,-450.0,0.00019996,2]
[359906350,1746411042542,-543.14725712,0.00019996,2]
[359906352,1746411042551,-450.0,0.00019996,2]
[359906354,1746411042561,-523.44384776,0.00019996,2]
[359906356,1746411042571,-565.42358166,0.00019996,2]
[359906359,1746411042580,-450.0,0.00019996,2]
[359906361,1746411042590,-507.76506426,0.00019996,2]
[359906364,1746411042599,-515.07198435,0.00019996,2]
[359906367,1746411042608,-439.60821371,0.00019996,2]
[359906370,1746411042617,-500.0,0.00019996,2]
[359906374,1746411042627,-503.80987821,0.00019996,2]
[359906377,1746411042637,-502.91721504,0.00019996,2]
[359906380,1746411042647,-513.01704804,0.00019996,2]
[359906383,1746411042656,-473.29369372,0.00019996,2]
[359906386,1746411042665,-300.13864713,0.00019996,2]
[359906389,1746411042674,-300.71898,0.00019996,2]
[359906392,1746411042683,-450.0,0.00019996,2]
[359906395,1746411042693,-513.85267279,0.00019996,2]
[359906397,1746411042702,-432.09572962,0.00019996,2]
[359906400,1746411042711,-450.0,0.00019996,2]
[359906403,1746411042720,-519.74279589,0.00019996,2]
[359906405,1746411042729,-450.0,0.00019996,2]
[359906408,1746411042739,-450.0,0.00019996,2]
[359906410,1746411042748,-450.0,0.00019996,2]
[359906412,1746411042758,-450.0,0.00019996,2]
[359906416,1746411042768,-500.0,0.00019996,2]
[359906418,1746411042777,-450.0,0.00019996,2]
[359906420,1746411042787,-214.0,0.00019996,2]
[359906422,1746411042797,-450.0,0.00019996,2]
[359906424,1746411042806,-450.0,0.00019996,2]
[359906426,1746411042816,-495.97112608,0.00019996,2]
[359906428,1746411042825,-450.0,0.00019996,2]
[359906430,1746411042834,-434.68452417,0.00019996,2]
[359906432,1746411042845,-450.0,0.00019996,2]
[359906434,1746411042857,-368.9861777,0.00019996,2]
[359906436,1746411042867,-450.0,0.00019996,2]
[359906438,1746411042877,-450.0,0.00019996,2]
[359906440,1746411042886,-450.0,0.00019996,2]
[359906442,1746411042895,-450.0,0.00019996,2]
[359906444,1746411042905,-1797.91,0.00019996,2]
[359906446,1746411042914,-525.85,0.00019996,2]
[359906448,1746411042923,-450.0,0.00019996,2]
[359906450,1746411042935,-470.0,0.00019996,2]
[359906452,1746411042944,-500.0,0.00019996,2]
[359906454,1746411042953,-500.0,0.00019996,2]
[359906456,1746411042962,-450.0,0.00019996,2]
[359906458,1746411042972,-550.89699471,0.00019996,2]
[359906460,1746411042981,-450.0,0.00019996,2]
[359906462,1746411042989,-450.0,0.00019996,2]
[359906464,1746411042999,-450.0,0.00019996,2]
[359906465,1746411043008,-450.0,0.00019996,2]
[359906467,1746411043017,-450.0,0.00019996,2]
[359906469,1746411043026,-774.54,0.00019996,2]
[359906471,1746411043037,-450.0,0.00019996,2]
[359906473,1746411043046,-450.0,0.00019996,2]
[359906476,1746411043055,-450.0,0.00019996,2]
[359906478,1746411043065,-557.81,0.00019996,2]
[359906480,1746411043074,-456.07764496,0.00019996,2]
[359906482,1746411043083,-361.55879876,0.00019996,2]
[359906484,1746411043092,-508.5990812,0.00019996,2]
[359906485,1746411043102,-500.0,0.00019996,2]
[359906488,1746411043111,-450.0,0.00019996,2]
[359906490,1746411043121,-412.41337402,0.00019996,2]
[359906491,1746411043130,-450.0,0.00019996,2]
[359906493,1746411043139,-450.0,0.00019996,2]
[359906495,1746411043149,-438.0,0.00019996,2]
[359906497,1746411043158,-450.0,0.00019996,2]
[359906499,1746411043168,-450.0,0.00019996,2]
[359906501,1746411043177,-423.86,0.00019996,2]
[359906503,1746411043186,-248.58051921,0.00019996,2]
[359906505,1746411043195,-450.0,0.00019996,2]
[359906507,1746411043205,-539.18,0.00019996,2]
[359906509,1746411043214,-450.0,0.00019996,2]
[359906511,1746411043224,-450.0,0.00019996,2]
[359906513,1746411043234,-461.38929947,0.00019996,2]
[359906515,1746411043243,-292.0377185,0.00019996,2]
[359906517,1746411043253,-459.93570431,0.00019996,2]
[359906519,1746411043263,-450.0,0.00019996,2]
[359906521,1746411043272,-470.0,0.00019996,2]
[359906523,1746411043281,-311.31513355,0.00019996,2]
[359906526,1746411043293,-450.0,0.00019996,2]
[359906528,1746411043302,-450.0,0.00019996,2]
[359906530,1746411043312,-450.0,0.00019996,2]
[359906532,1746411043323,-515.18967014,0.00019996,2]
[359906533,1746411043332,-456.15465525,0.00019996,2]
[359906536,1746411043343,-476.52283068,0.00019996,2]
[359906538,1746411043353,-554.30705815,0.00019996,2]
[359906539,1746411043362,-450.0,0.00019996,2]
[359906541,1746411043371,-508.88117952,0.00019996,2]
[359906543,1746411043381,-469.53960709,0.00019996,2]
[359906545,1746411043391,-450.0,0.00019996,2]
[359906547,1746411043400,-499.6749523,0.00019996,2]
[359906549,1746411043410,-485.97398486,0.00019996,2]
[359906551,1746411043420,-453.70487618,0.00019996,2]
[359906553,1746411043429,-457.95442225,0.00019996,2]
[359906555,1746411043439,-494.4797099,0.00019996,2]
[359906557,1746411043449,-500.0,0.00019996,2]
[359906559,1746411043458,-470.0,0.00019996,2]
[359906561,1746411043467,-483.84421354,0.00019996,2]
[359906563,1746411043478,-506.29204897,0.00019996,2]
[359906565,1746411043487,-467.16628513,0.00019996,2]
[359906567,1746411043496,-550.52523497,0.00019996,2]
[359906569,1746411043506,-464.32526984,0.00019996,2]
[359906571,1746411043515,-450.0,0.00019996,2]
[359906573,1746411043524,-500.0,0.00019996,2]
[359906575,1746411043536,-450.0,0.00019996,2]
[359906577,1746411043546,-450.0,0.00019996,2]
[359906579,1746411043555,-450.0,0.00019996,2]
[359906580,1746411043565,-482.14073974,0.00019996,2]
[359906582,1746411043574,-477.52719189,0.00019996,2]
[359906584,1746411043584,-455.31648254,0.00019996,2]
[359906586,1746411043594,-463.69404304,0.00019996,2]
[359906588,1746411043603,-509.87857998,0.00019996,2]
[359906590,1746411043612,-472.96390069,0.00019996,2]
[359906592,1746411043621,-450.0,0.00019996,2]
[359906594,1746411043632,-526.69437625,0.00019996,2]
[359906596,1746411043642,-255.55339827,0.00019996,2]
[359906599,1746411043652,-472.12419073,0.00019996,2]
[359906601,1746411043662,-469.27245692,0.00019996,2]
[359906602,1746411043672,-488.64166291,0.00019996,2]
[359906604,1746411043682,-165.24769332,0.00019996,2]
[359906606,1746411043691,-483.76903245,0.00019996,2]
[359906609,1746411043702,-509.82155977,0.00019996,2]
[359906611,1746411043711,-470.94612008,0.00019996,2]
[359906612,1746411043720,-450.00000001,0.00019996,2]
[359906614,1746411043730,-450.0,0.00019996,2]
[359906616,1746411043739,-450.0,0.00019996,2]
[359906619,1746411043749,-490.0,0.00019996,2]
[359906621,1746411043759,-490.0,0.00019996,2]
[359906623,1746411043769,-450.0,0.00019996,2]
[359906624,1746411043778,-450.0,0.00019996,2]
[359906626,1746411043791,-459.47171882,0.00019996,2]
[359906629,1746411043801,-528.19480173,0.00019996,2]
[359906630,1746411043810,-510.0,0.00019996,2]
[359906632,1746411043818,-470.66081904,0.00019996,2]
[359906634,1746411043827,-459.31224249,0.00019996,2]
[359906636,1746411043837,-462.77035618,0.00019996,2]
[359906638,1746411043848,-450.0,0.00019996,2]
[359906640,1746411043857,-481.64015525,0.00019996,2]
[359906642,1746411043867,-453.39181718,0.00019996,2]
[359906644,1746411043876,-490.0,0.00019996,2]
[359906646,1746411043887,-477.45176328,0.00019996,2]
[359906648,1746411043897,-459.8576753,0.00019996,2]
[359906650,1746411043906,-450.0,0.00019996,2]
[359906652,1746411043916,-406.01294985,0.00019996,2]
[359906654,1746411043927,-490.0,0.00019996,2]
[359906656,1746411043938,-476.52908061,0.00019996,2]
[359906658,1746411043947,-252.05077094,0.00019996,2]
[359906660,1746411043957,-510.0,0.00019996,2]
[359906662,1746411043966,-450.0,0.00019996,2]
[359906664,1746411043976,-450.0,0.00019996,2]
[359906666,1746411043985,-450.0,0.00019996,2]
[359906668,1746411043994,-835.78,0.00019997,2]
[359906670,1746411044003,-183.88245997,0.00019997,2]
[359906672,1746411044012,-450.0,0.00019997,2]
[359906674,1746411044022,-450.0,0.00019997,2]
[359906676,1746411044031,-450.0,0.00019997,2]
[359906678,1746411044041,-309.7475915,0.00019997,2]
[359906680,1746411044051,-450.0,0.00019997,2]
[359906682,1746411044060,-450.0,0.00019997,2]
[359906684,1746411044071,-1610.39,0.00019997,2]
[359906686,1746411044080,-241.08,0.00019997,2]
[359906688,1746411044089,-506.08,0.00019997,2]
[359906690,1746411044099,-450.0,0.00019997,2]
[359906692,1746411044108,-450.0,0.00019997,2]
[359906694,1746411044117,-450.0,0.00019997,2]
[359906696,1746411044127,-545.06858614,0.00019997,2]
[359906698,1746411044136,-450.0,0.00019998,2]
[359906700,1746411044145,-450.0,0.00019998,2]
[359906702,1746411044154,-195.72413108,0.00019998,2]
[359906704,1746411044163,-538.33283278,0.00019998,2]